[Event "3rd Mersin Open 2018"]
[Site "Mersin"]
[Date "2018.09.15"]
[Round "8.8"]
[White "Yasin, Hur"]
[Black "Koksal, Ege"]
[Result "0-1"]
[ECO "C84"]
[WhiteElo "2044"]
[BlackElo "2367"]
[Annotator "NA"]
[PlyCount "72"]
[EventDate "2018.09.09"]
[EventType "swiss"]
[EventCountry "TUR"]
[SourceTitle "playchess.com"]
[Source "ChessBase"]
[SourceQuality "1"]
[TimeControl "5400+30"]

{[%evp 10,72,3,0,10,32767,32767,32767,32767,26,16,-6,9,-64,-96,-82,-104,-114,-70,32767,32767,32767,32767,-199,-206,-264,-75,-78,-68,-96,-64,-41,50,0,0,0,16,32767,32767,32767,32767,-28,-40,-172,-295,-165,-315,-395,-83,-292,0,-82,32767,32767,32767,32767,-74,-79,-75,-74,-86,-165,-192,-189,-100]} 1. e4 {[%emt 0:03:30]} e5 {[%emt 0:00:30]} 2. Nf3 {[%emt 0:00:30]} Nc6 {[%emt 0:00:30]} 3. Bb5 {[%emt 0:00:30]} a6 {[%emt 0:00:30]} 4. Ba4 {[%emt 0:00:30]} Nf6 {[%emt 0:00:30]} 5. d4 {[%emt 0:00:00]} exd4 {[%emt 0:01:30]} 6. O-O {[%emt 0:00:00]} Be7 {[%emt 0:00:30] LiveBook: 1126 Games} 7. e5 {[%emt 0:02:30]} Ne4 {[%emt 0:00:30]} 8. Nxd4 {[%emt 0:00:30]} Nxd4 {[%emt 0:00:30]} 9. Qxd4 {[%emt 0:00:30]} Nc5 {[%emt 0:00:00]} 10. Qg4 {[%emt 0:15:30] C84: Closed Ruy Lopez: Unusual White 6th moves} (10. Nc3 O-O 11. Nd5 Re8 12. Nxe7+ Qxe7 13. Bd2 b5 14. Bb3 Bb7 15. Rfe1 Ne4 16. c3 c5 17. Qe3 d6 18. exd6 Qxd6 19. Rad1 {1-0 (47) Pancevski,F (2503)-Amin,B (2661) Baku 2016}) 10... Nxa4 {[%emt 0:06:00]} 11. Qxg7 {[%emt 0:00:30]} (11. Qxa4 $11 O-O 12. Nc3) 11... Rf8 {[%emt 0:00:30]} 12. Bh6 {[%emt 0:01:30]} d5 {[%emt 0:08:30]} ({Worse is} 12... Nxb2 13. Nd2 $11) 13. Qxh7 {[%emt 0:01:30]} Be6 $146 {[%emt 0:04:30]} ({Predecessor:} 13... Bd7 14. Nd2 Bb5 15. c4 dxc4 {1-0 (58) Tal,M-Straume,I Riga 1953}) 14. Bxf8 {[%emt 0:02:30]} Bxf8 {[%emt 0:00:30]} 15. f4 {[%emt 0:00:30]} Qe7 {[%emt 0:00:30]} 16. f5 {[%emt 0:01:30] [#]} (16. b3 $17 Nc5 17. Nc3) 16... Bd7 $1 {[%emt 0:00:00]} 17. b3 {[%emt 0:25:30]} (17. e6 $142 fxe6 18. Qh5+ Qf7 19. Qh4) 17... Nb6 $2 {[%emt 0:01:00]} (17... Qxe5 $19 18. Nd2 Nc3) 18. Nd2 {[%emt 0:02:30] [#]} O-O-O $1 {[%emt 0:00:30]} 19. Nf3 {[%emt 0:02:30]} Qc5+ {[%emt 0:00:30]} 20. Kh1 $1 {[%emt 0:01:30]} Be8 {[%emt 0:11:30]} (20... Qxc2 $15 21. Ng5 Ba3) 21. Rfe1 {[%emt 0:06:30]} d4 {[%emt 0:20:30]} 22. Rad1 {[%emt 0:08:30]} Bc6 {[%emt 0:12:30]} 23. Qxf7 {[%emt 0:04:03]} Bxf3 {[%emt 0:00:00]} 24. gxf3 {[%emt 0:00:15]} Nd5 {[%emt 0:00:00]} 25. f6 {[%emt 0:02:03]} Qxc2 {[%emt 0:02:30]} 26. Qh5 {[%emt 0:09:01]} (26. Rxd4 $15 Qf2 27. Rxd5 (27. Red1 Qxf3+ 28. Kg1 Bc5 29. Qh7 Nc3 30. Qh3+ Qxh3 31. Kf2 Qf5+ 32. Ke1 Bxd4 33. Kd2 Bxe5+ 34. Ke3 Qf4#) 27... Qxf3+ 28. Kg1 Qg4+ 29. Kh1 (29. Kf2 $2 Bc5+ 30. Re3 Rh8 $19) 29... Qf3+ 30. Kg1 Qg4+ 31. Kh1 Qf3+) 26... Ne3 {[%emt 0:11:10]} 27. Qh3+ {[%emt 0:00:30]} Kb8 {[%emt 0:00:30]} 28. Rc1 {[%emt 0:00:00] [#]} Qb2 $2 {[%emt 0:02:18]} (28... d3 $3 $19 {[%mdl 512] has better winning chances.} 29. Rxc2 dxc2) 29. e6 $2 {[%emt 0:04:02] [#]} (29. Rb1 $17 Qxa2 30. e6) 29... Re8 $2 {[%emt 0:00:01]} (29... d3 $1 $19 {[%cal Rd3d2]} 30. e7 Bxe7 31. fxe7 Re8) 30. Rb1 {[%emt 0:01:56]} (30. Rg1 $1 $11 {keeps the balance.}) 30... Qxa2 {[%emt 0:04:00]} 31. e7 {[%emt 0:00:51]} Bxe7 {[%emt 0:00:30]} 32. fxe7 {[%emt 0:00:00]} Ka7 {[%emt 0:00:18]} ({Avoid the trap} 32... Rxe7 $2 33. Qh8+ Ka7 34. Qxd4+ b6 35. Rb2 $18) 33. Rg1 {[%emt 0:03:17]} Rxe7 {[%emt 0:00:37]} 34. Qh4 {[%emt 0:00:22]} Rd7 {[%emt 0:00:14]} 35. Qe4 {[%emt 0:00:11] [#]} (35. Qg5 $17 {keeps fighting.}) 35... Qf2 $1 {[%emt 0:03:02]} 36. Rbe1 {[%emt 0:02:29] [#]} c5 $17 {[%emt 0:00:30]} ({Black should try} 36... Rh7 $1 $19 {[%csl Gf2][%cal Rh7h2][%mdl 512]} 37. Qxd4+ {[#]} (37. Qxh7 Qxf3+) 37... c5 $1 {[%mdl 512]}) 0-1

[Event "3rd Mersin Open 2018"]
[Site "Mersin"]
[Date "2018.09.15"]
[Round "8.10"]
[White "Olcum, Ahmet"]
[Black "Aganazarov, Yagmyr"]
[Result "1-0"]
[ECO "A45"]
[WhiteElo "2302"]
[BlackElo "2002"]
[Annotator "NA"]
[PlyCount "95"]
[EventDate "2018.09.09"]
[EventType "swiss"]
[EventCountry "TUR"]
[SourceTitle "playchess.com"]
[Source "ChessBase"]
[SourceQuality "1"]
[TimeControl "5400+30"]

{[%evp 10,95,26,35,25,-5,0,-30,19,-68,22,39,38,18,63,75,56,72,115,70,32767,32767,32767,32767,57,55,70,51,61,33,84,43,54,40,22,24,153,137,129,129,131,136,129,143,141,144,151,139,187,179,186,79,302,212,32767,32767,32767,32767,81,107,106,86,146,140,140,191,209,0,131,107,125,189,370,373,342,445,272,418,502,-1016,533,556,495,780,956,1099,831,1326]} 1. d4 {[%emt 0:19:30]} Nf6 {[%emt 0:00:30]} 2. Bf4 {[%emt 0:00:30]} g6 {[%emt 0:00:30]} 3. Nc3 {[%emt 0:00:00]} Bg7 {[%emt 0:01:30] A45: Trompowsky Attack} (3... d5 4. e3 Bg7 5. h4 h5 6. Nf3 O-O 7. Qd2 c5 8. Ne5 Nc6 9. f3 Nd7 10. Nxd5 cxd4 11. exd4 {½-½ (20) Kravtsiv,M (2654)-Salem,A (2636) Abu Dhabi 2018}) 4. Qd2 {[%emt 0:00:00]} O-O {[%emt 0:04:30]} 5. Bh6 {[%emt 0:01:30]} Bxh6 {[%emt 0:05:30]} 6. Qxh6 {[%emt 0:01:30]} b5 $146 {[%emt 0:00:30]} ({Predecessor:} 6... c5 7. O-O-O Nc6 8. dxc5 Qa5 9. Nf3 Ng4 10. Qh4 Nf6 11. g4 {1-0 (55) Milanovic,D (2508)-Ratkovic,M (2405) Zrenjanin 2018}) 7. f3 {[%emt 0:31:30]} c5 {[%emt 0:10:30]} 8. dxc5 {[%emt 0:02:30]} Qa5 {[%emt 0:01:30]} 9. Nh3 {[%emt 0:02:30]} (9. e4 $11) 9... d5 {[%emt 0:01:30]} (9... b4 $15 10. Ne4 Nxe4 11. fxe4 f6) 10. cxd6 $1 {[%emt 0:02:30]} Bxh3 {[%emt 0:04:30]} 11. dxe7 {[%emt 0:05:30]} Re8 {[%emt 0:01:30]} 12. Qg5 {[%emt 0:05:30]} Nbd7 {[%emt 0:02:30]} 13. gxh3 {[%emt 0:00:30]} Qc7 {[%emt 0:04:30]} 14. e4 {[%emt 0:16:37]} ({Weaker is} 14. Qxb5 Rab8 $15) ({Not} 14. Nxb5 Qa5+ 15. c3 a6 $17) 14... b4 {[%emt 0:06:30]} 15. Nd5 {[%emt 0:00:08]} Nxd5 {[%emt 0:00:30]} 16. Qxd5 {[%emt 0:00:06]} Nb6 {[%emt 0:01:30]} ({Black should play} 16... Qf4 $1 $11) 17. Qd2 {[%emt 0:00:46]} Qxe7 {[%emt 0:01:30]} 18. O-O-O {[%emt 0:02:56]} Red8 {[%emt 0:03:30]} 19. Bd3 {[%emt 0:00:01]} Na4 {[%emt 0:03:30]} 20. Kb1 {[%emt 0:04:28]} Rab8 {[%emt 0:01:30]} 21. Ka1 {[%emt 0:00:21]} Qf6 {[%emt 0:02:30]} 22. Qc1 {[%emt 0:00:07]} Qxf3 {[%emt 0:06:30]} ({Black should play} 22... Rdc8 $14) 23. Rhf1 {[%emt 0:00:01]} Qh5 {[%emt 0:04:30]} 24. Bc4 {[%emt 0:02:10]} Rxd1 {[%emt 0:00:00]} 25. Bxf7+ {[%emt 0:00:18]} ({But not} 25. Qxd1 $6 Qxd1+ 26. Rxd1 Nb6 $14) ({Much weaker is} 25. Rxd1 $6 Qe5 $11) 25... Kg7 {[%emt 0:01:00]} 26. Rxd1 {[%emt 0:00:05]} Rf8 {[%emt 0:04:30]} 27. Bb3 {[%emt 0:00:30]} Nc5 {[%emt 0:00:00]} 28. Qd2 {[%emt 0:01:18]} Nxe4 {[%emt 0:03:00]} 29. Qd4+ {[%emt 0:00:03]} Kh6 {[%emt 0:02:30] [#]} 30. Qe3+ {[%emt 0:00:26]} (30. c3 $1 $18 {and White stays clearly on top.} Qe2 31. Bc4 (31. Qxb4 Rf1 $11) (31. cxb4 Rf3 $18)) 30... g5 $2 {[%emt 0:00:30]} (30... Ng5 $16 31. Rg1 Rf5) 31. Re1 {[%emt 0:00:41]} Rf4 {[%emt 0:01:30]} 32. Qxa7 {[%emt 0:00:15]} Qh4 {[%emt 0:00:30]} 33. Rd1 {[%emt 0:00:30]} Qxh3 {[%emt 0:00:30]} 34. a3 {[%emt 0:00:24]} bxa3 {[%emt 0:01:30]} 35. Qxa3 {[%emt 0:00:28]} Qxh2 {[%emt 0:01:38]} (35... Kh5 $142) 36. Qe7 {[%emt 0:00:05]} Qh5 $1 {[%emt 0:03:04]} 37. Re1 {[%emt 0:01:14]} Qh4 {[%emt 0:00:55] [#]} 38. Rd1 $2 {[%emt 0:00:39]} (38. Rc1 $1 $18) 38... Qh5 {[%emt 0:00:01]} 39. Rd7 {[%emt 0:00:47]} Qg6 {[%emt 0:01:16]} 40. Bc4 {[%emt 0:00:01]} Nf6 $2 {[%emt 0:02:40]} (40... Qf5 $16 {is a better defense.}) 41. Qf8+ {[%emt 0:00:48]} Kh5 {[%emt 0:00:02] [#]} 42. Bf7 $1 {[%emt 0:00:40]} Nxd7 {[%emt 0:00:02]} 43. Bxg6+ {[%emt 0:00:03]} hxg6 {[%emt 0:01:21]} 44. Qh8+ $4 {[%emt 0:00:07]} (44. Qc8 $18) 44... Kg4 {[%emt 0:00:00]} 45. Qc8 {[%emt 0:00:10]} Rd4 {[%emt 0:00:00]} 46. c4 {[%emt 0:00:40]} Kg3 {[%emt 0:01:47]} 47. c5 {[%emt 0:00:25]} Ne5 {[%emt 0:00:54]} 48. Qb8 $18 {[%emt 0:00:33]} 1-0

[Event "3rd Mersin Open 2018"]
[Site "Mersin"]
[Date "2018.09.15"]
[Round "8.11"]
[White "Altug, Sertac"]
[Black "Zuberoglu, Ibrahim Berk"]
[Result "0-1"]
[ECO "A80"]
[WhiteElo "1633"]
[BlackElo "1633"]
[Annotator "NA"]
[PlyCount "60"]
[EventDate "2018.09.09"]
[EventType "swiss"]
[EventCountry "TUR"]
[SourceTitle "playchess.com"]
[Source "ChessBase"]
[SourceQuality "1"]
[TimeControl "5400+30"]

1. d4 {[%emt 0:00:30]} f5 {[%emt 0:00:30]} 2. Bg5 {[%emt 0:00:30]} h6 {[%emt 0:01:30]} 3. Bf4 {[%emt 0:04:30]} Nf6 {[%emt 0:02:30]} 4. h4 {[%emt 0:01:30]} g6 {[%emt 0:01:30]} 5. Nf3 {[%emt 0:01:30]} d6 {[%emt 0:02:30]} 6. Nbd2 {[%emt 0:03:30]} Bg7 {[%emt 0:00:30]} 7. c3 {[%emt 0:08:30]} Nc6 {[%emt 0:04:30]} 8. Qb3 {[%emt 0:04:30]} Nh5 {[%emt 0:04:30]} 9. Bh2 {[%emt 0:04:30]} e5 {[%emt 0:00:30]} 10. dxe5 {[%emt 0:04:30]} dxe5 {[%emt 0:00:30]} 11. O-O-O {[%emt 0:02:30]} Qe7 {[%emt 0:06:30]} 12. e4 {[%emt 0:02:30]} f4 {[%emt 0:06:30]} 13. Bc4 {[%emt 0:05:30]} Rb8 {[%emt 0:06:30]} 14. g3 {[%emt 0:09:30]} fxg3 {[%emt 0:06:30]} 15. fxg3 {[%emt 0:03:30]} Bd7 {[%emt 0:01:30]} 16. Rhf1 {[%emt 0:01:30]} b5 {[%emt 0:02:30]} 17. Bd5 {[%emt 0:19:30]} b4 {[%emt 0:10:30]} 18. Nc4 {[%emt 0:10:31]} bxc3 {[%emt 0:01:30]} 19. Bxc6 {[%emt 0:04:10]} Rxb3 {[%emt 0:02:30]} 20. Rxd7 {[%emt 0:02:03]} Qc5 {[%emt 0:28:17]} 21. Rxc7+ {[%emt 0:03:48]} Kd8 {[%emt 0:00:47]} 22. Rd7+ {[%emt 0:00:48]} Ke8 {[%emt 0:01:56]} 23. Rxg7+ {[%emt 0:01:33]} Qxc6 {[%emt 0:00:38]} 24. Nfxe5 {[%emt 0:00:02]} cxb2+ {[%emt 0:00:39]} 25. Kc2 {[%emt 0:00:34]} Qxe4+ {[%emt 0:00:12]} 26. Kxb3 {[%emt 0:00:29]} b1=Q+ {[%emt 0:00:17]} 27. Ka3 {[%emt 0:00:24]} Qxf1 {[%emt 0:00:57]} 28. Rxa7 {[%emt 0:00:27]} Qfxc4 {[%emt 0:01:22]} 29. Nxc4 {[%emt 0:00:13]} Qxc4 {[%emt 0:00:02]} 30. Bg1 {[%emt 0:00:42]} Qc1+ {[%emt 0:00:15]} 0-1

[Event "3rd Mersin Open 2018"]
[Site "Mersin"]
[Date "2018.09.15"]
[Round "8.12"]
[White "Menken, Ekin"]
[Black "Soltani, Fardin"]
[Result "0-1"]
[ECO "B08"]
[WhiteElo "1706"]
[BlackElo "1644"]
[Annotator "NA"]
[PlyCount "109"]
[EventDate "2018.09.09"]
[EventType "swiss"]
[EventCountry "TUR"]
[SourceTitle "playchess.com"]
[Source "ChessBase"]
[SourceQuality "1"]
[TimeControl "5400+30"]

1. e4 {[%emt 0:00:30]} d6 {[%emt 0:00:30]} 2. d4 {[%emt 0:00:30]} Nf6 {[%emt 0:00:00]} 3. Nc3 {[%emt 0:00:30]} g6 {[%emt 0:00:00]} 4. Nf3 {[%emt 0:00:00]} Bg7 {[%emt 0:00:30]} 5. Be2 {[%emt 0:00:00]} O-O {[%emt 0:00:00]} 6. O-O {[%emt 0:00:00]} Nbd7 {[%emt 0:05:00]} 7. h3 {[%emt 0:06:00]} e5 {[%emt 0:06:30]} 8. dxe5 {[%emt 0:02:30]} dxe5 {[%emt 0:00:30]} 9. Be3 {[%emt 0:02:30]} a6 {[%emt 0:06:30]} 10. a4 {[%emt 0:08:30]} Qe7 {[%emt 0:06:30]} 11. Bc4 {[%emt 0:18:30]} Qb4 {[%emt 0:14:30]} 12. Qd3 {[%emt 0:03:30]} Nc5 {[%emt 0:02:30]} 13. Bxc5 {[%emt 0:04:30]} Qxc5 {[%emt 0:02:30]} 14. Nd5 {[%emt 0:02:30]} Nxd5 {[%emt 0:02:30]} 15. Bxd5 {[%emt 0:01:30]} h6 {[%emt 0:03:30]} 16. Rfd1 {[%emt 0:05:30]} Rb8 {[%emt 0:08:30]} 17. a5 {[%emt 0:06:30]} Kh7 {[%emt 0:03:30]} 18. c3 {[%emt 0:08:30]} b5 {[%emt 0:09:30]} 19. b4 {[%emt 0:03:30]} Qe7 {[%emt 0:01:30]} 20. Nd2 {[%emt 0:01:30]} Rd8 {[%emt 0:03:30]} 21. Qe3 {[%emt 0:03:30]} Be6 {[%emt 0:00:30]} 22. Nb3 {[%emt 0:01:17]} Bxd5 {[%emt 0:02:30]} 23. exd5 {[%emt 0:01:32]} Qd6 {[%emt 0:04:55]} 24. Nc5 {[%emt 0:01:50]} f5 {[%emt 0:00:33]} 25. f3 {[%emt 0:01:13]} Re8 {[%emt 0:06:30]} 26. Rd2 {[%emt 0:04:15]} Bf6 {[%emt 0:01:26]} 27. Qd3 {[%emt 0:00:54]} Re7 {[%emt 0:00:47]} 28. Re1 {[%emt 0:03:34]} Bg5 {[%emt 0:02:26]} 29. Rde2 {[%emt 0:01:31]} Rd8 {[%emt 0:02:28]} 30. Rd1 {[%emt 0:00:16]} Ra8 {[%emt 0:01:14]} 31. c4 {[%emt 0:01:31]} bxc4 {[%emt 0:00:37]} 32. Qxc4 {[%emt 0:00:01]} c6 {[%emt 0:00:48]} 33. Rd3 {[%emt 0:01:18]} Bf6 {[%emt 0:01:37]} 34. dxc6 {[%emt 0:01:13]} Qxc6 {[%emt 0:00:16]} 35. Qd5 {[%emt 0:00:34]} Qxd5 {[%emt 0:02:05]} 36. Rxd5 {[%emt 0:00:31]} e4 {[%emt 0:00:02]} 37. fxe4 {[%emt 0:00:33]} Bc3 {[%emt 0:00:12]} 38. e5 {[%emt 0:03:24]} Bxb4 {[%emt 0:00:11]} 39. e6 {[%emt 0:01:20]} Bxa5 {[%emt 0:01:00]} 40. Rd7 {[%emt 0:01:47]} Rae8 {[%emt 0:00:30]} 41. Rxe7+ {[%emt 0:00:48]} Rxe7 {[%emt 0:00:04]} 42. Nxa6 {[%emt 0:00:26]} Kg7 {[%emt 0:00:15]} 43. Nb8 {[%emt 0:00:32]} f4 {[%emt 0:01:28]} 44. Nc6 {[%emt 0:00:30]} Bb6+ {[%emt 0:00:14]} 45. Kf1 {[%emt 0:00:20]} Re8 {[%emt 0:00:35]} 46. Re4 {[%emt 0:00:42]} g5 {[%emt 0:00:31]} 47. Ke2 {[%emt 0:00:32]} Kf6 {[%emt 0:00:23]} 48. e7 {[%emt 0:00:30]} Bc5 {[%emt 0:00:24]} 49. Kf3 {[%emt 0:00:32]} Bxe7 {[%emt 0:00:52]} 50. Nxe7 {[%emt 0:00:02]} Rxe7 {[%emt 0:00:20]} 51. Rxe7 {[%emt 0:00:01]} Kxe7 {[%emt 0:00:27]} 52. h4 {[%emt 0:01:27]} Kf6 {[%emt 0:00:39]} 53. hxg5+ {[%emt 0:00:30]} hxg5 {[%emt 0:00:12]} 54. g3 {[%emt 0:00:10]} Ke5 {[%emt 0:00:25]} 55. Kf2 {[%emt 0:01:24]} 0-1

[Event "3rd Mersin Open 2018"]
[Site "Mersin"]
[Date "2018.09.15"]
[Round "8.13"]
[White "Imamverdiyev, Faiq"]
[Black "Ozcan, Berk"]
[Result "0-1"]
[ECO "B21"]
[WhiteElo "1604"]
[BlackElo "1617"]
[Annotator "NA"]
[PlyCount "128"]
[EventDate "2018.09.09"]
[EventType "swiss"]
[EventCountry "TUR"]
[SourceTitle "playchess.com"]
[Source "ChessBase"]
[SourceQuality "1"]
[TimeControl "5400+30"]

1. e4 {[%emt 0:00:30]} c5 {[%emt 0:03:30]} 2. d4 {[%emt 0:00:00]} cxd4 {[%emt 0:00:00]} 3. c3 {[%emt 0:00:00]} dxc3 {[%emt 0:00:00]} 4. Nxc3 {[%emt 0:00:30]} Nc6 {[%emt 0:00:30]} 5. Nf3 {[%emt 0:00:00]} e6 {[%emt 0:00:30]} 6. Bf4 {[%emt 0:01:00]} a6 {[%emt 0:00:30]} 7. Bc4 {[%emt 0:01:30]} Nge7 {[%emt 0:01:30]} 8. O-O {[%emt 0:08:30]} Ng6 {[%emt 0:00:30]} 9. Bg3 {[%emt 0:03:30]} b5 {[%emt 0:04:30]} 10. Bb3 {[%emt 0:07:30]} Be7 {[%emt 0:00:00]} 11. Qe2 {[%emt 0:02:30]} O-O {[%emt 0:05:00]} 12. Rfd1 {[%emt 0:01:30]} Na5 {[%emt 0:16:30]} 13. Qd3 {[%emt 0:05:30]} b4 {[%emt 0:16:30]} 14. Ne2 {[%emt 0:01:30]} Nxb3 {[%emt 0:00:30]} 15. axb3 {[%emt 0:05:30]} Bb7 {[%emt 0:04:30]} 16. e5 {[%emt 0:04:30]} Bd5 {[%emt 0:09:30]} 17. Ned4 {[%emt 0:06:30]} Qb6 {[%emt 0:04:30]} 18. h4 {[%emt 0:10:30]} h5 {[%emt 0:09:30]} 19. Nf5 {[%emt 0:01:30]} Bc5 {[%emt 0:03:23]} 20. Ne3 {[%emt 0:00:30]} Bxe3 {[%emt 0:01:32]} 21. fxe3 {[%emt 0:00:30]} Bxf3 {[%emt 0:02:52]} 22. gxf3 {[%emt 0:00:30]} Qc6 {[%emt 0:01:19]} 23. Kg2 {[%emt 0:04:30]} Rfc8 {[%emt 0:00:48]} 24. Rd2 {[%emt 0:00:30]} Rc7 {[%emt 0:04:46]} 25. Qe2 {[%emt 0:04:30]} a5 {[%emt 0:03:18]} 26. Kh2 {[%emt 0:02:30]} Ne7 {[%emt 0:01:13]} 27. e4 {[%emt 0:02:30]} a4 {[%emt 0:00:17]} 28. bxa4 {[%emt 0:02:30]} Rxa4 {[%emt 0:00:30]} 29. Rad1 {[%emt 0:00:30]} Nc8 {[%emt 0:00:30]} 30. f4 {[%emt 0:00:30]} b3 {[%emt 0:00:30]} 31. Qxh5 {[%emt 0:00:30]} Rxe4 {[%emt 0:00:30]} 32. Qg5 {[%emt 0:00:30]} Re3 {[%emt 0:05:17]} 33. Bf2 {[%emt 0:11:17]} Rf3 {[%emt 0:00:15]} 34. Rg1 {[%emt 0:01:11]} g6 {[%emt 0:00:01]} 35. h5 {[%emt 0:00:29]} Qe4 {[%emt 0:00:09]} 36. Qd8+ {[%emt 0:06:56]} Kg7 {[%emt 0:00:26]} 37. Qxc7 {[%emt 0:01:16]} Qxf4+ {[%emt 0:00:06]} 38. Bg3 {[%emt 0:00:11]} Qxd2+ {[%emt 0:01:12]} 39. Rg2 {[%emt 0:00:05]} Qd1 {[%emt 0:01:00]} 40. h6+ {[%emt 0:01:18]} Kh7 {[%emt 0:00:12]} 41. Rg1 {[%emt 0:02:36]} Qd2+ {[%emt 0:00:21]} 42. Rg2 {[%emt 0:00:15]} Qd1 {[%emt 0:00:53]} 43. Rg1 {[%emt 0:01:26]} Qc2+ {[%emt 0:00:37]} 44. Qxc2 {[%emt 0:00:13]} bxc2 {[%emt 0:00:01]} 45. Rc1 {[%emt 0:00:10]} Kxh6 {[%emt 0:00:36]} 46. Rxc2 {[%emt 0:00:05]} Ne7 {[%emt 0:00:15]} 47. Kg2 {[%emt 0:00:13]} Rb3 {[%emt 0:00:09]} 48. Rd2 {[%emt 0:00:14]} Nd5 {[%emt 0:00:18]} 49. Kf2 {[%emt 0:00:24]} Kg5 {[%emt 0:00:44]} 50. Kg2 {[%emt 0:00:39]} Kg4 {[%emt 0:00:31]} 51. Rd4+ {[%emt 0:00:12]} Kf5 {[%emt 0:00:06]} 52. Rd2 {[%emt 0:00:13]} Ne3+ {[%emt 0:01:46]} 53. Kh3 {[%emt 0:00:56]} Ke4 {[%emt 0:01:09]} 54. Re2 {[%emt 0:00:30]} Kd5 {[%emt 0:00:52]} 55. Rd2+ {[%emt 0:01:23]} Kc6 {[%emt 0:00:25]} 56. Rd6+ {[%emt 0:01:04]} Kc7 {[%emt 0:00:00]} 57. Rd2 {[%emt 0:01:02]} Nf5 {[%emt 0:00:10]} 58. Rc2+ {[%emt 0:00:30]} Kb6 {[%emt 0:00:10]} 59. Rg2 {[%emt 0:00:30]} Kb5 {[%emt 0:01:09]} 60. Kh2 {[%emt 0:00:32]} Rxg3 {[%emt 0:00:06]} 61. Rxg3 {[%emt 0:00:03]} Nxg3 {[%emt 0:00:04]} 62. Kxg3 {[%emt 0:00:03]} Kc4 {[%emt 0:00:12]} 63. Kf4 {[%emt 0:00:08]} Kd4 {[%emt 0:00:27]} 64. b3 {[%emt 0:00:13]} g5+ {[%emt 0:00:06]} 0-1

[Event "3rd Mersin Open 2018"]
[Site "Mersin"]
[Date "2018.09.16"]
[Round "9.11"]
[White "Zuberoglu, Ibrahim Berk"]
[Black "Soltani, Benavandi Fardin"]
[Result "0-1"]
[ECO "B07"]
[WhiteElo "1633"]
[BlackElo "1644"]
[Annotator "NA RC"]
[PlyCount "68"]
[EventDate "2018.09.09"]
[EventType "swiss"]
[EventCountry "TUR"]
[SourceTitle "playchess.com"]
[Source "ChessBase"]
[SourceQuality "1"]
[TimeControl "5400+30"]

1. e4 {[%emt 0:00:30]} d6 {[%emt 0:01:30]} 2. d4 {[%emt 0:00:00]} Nf6 {[%emt 0:00:00]} 3. Nc3 {[%emt 0:00:00]} g6 {[%emt 0:00:00]} 4. f3 {[%emt 0:00:30]} Bg7 {[%emt 0:06:30]} 5. Be3 {[%emt 0:00:30]} c6 {[%emt 0:00:30]} 6. Qd2 {[%emt 0:03:30]} h5 {[%emt 0:01:30]} 7. Bd3 {[%emt 0:10:30]} Nbd7 {[%emt 0:00:30]} 8. Nh3 {[%emt 0:03:30]} a6 {[%emt 0:01:30]} 9. Ng5 {[%emt 0:06:30]} Qa5 {[%emt 0:06:30]} 10. a3 {[%emt 0:08:30]} b5 {[%emt 0:11:30]} 11. e5 {[%emt 0:07:30]} dxe5 {[%emt 0:02:30]} 12. Bxg6 {[%emt 0:03:30]} fxg6 {[%emt 0:10:30]} 13. Ne6 {[%emt 0:02:30]} Nd5 {[%emt 0:00:30]} 14. Qd3 {[%emt 0:08:30]} Nf8 {[%emt 0:06:30]} 15. Nxg7+ {[%emt 0:04:30]} Kf7 {[%emt 0:00:30]} 16. Bd2 {[%emt 0:00:30]} Qc7 {[%emt 0:09:30]} 17. Nxd5 {[%emt 0:03:30]} cxd5 {[%emt 0:00:30]} 18. dxe5 {[%emt 0:00:30]} e6 {[%emt 0:05:30]} 19. Nxe6 {[%emt 0:04:30]} Bxe6 {[%emt 0:00:30]} 20. O-O {[%emt 0:00:00]} Qc4 {[%emt 0:03:30]} 21. Qe3 {[%emt 0:01:00]} Nd7 {[%emt 0:00:30]} 22. Bb4 {[%emt 0:01:30]} h4 {[%emt 0:03:30]} 23. b3 {[%emt 0:03:30]} Qc7 {[%emt 0:01:30]} 24. Qf4+ {[%emt 0:01:30]} Kg7 {[%emt 0:01:30]} 25. Be7 {[%emt 0:00:30]} Qxe5 {[%emt 0:01:30]} 26. Qxe5+ {[%emt 0:00:30]} Nxe5 {[%emt 0:00:30]} 27. Rae1 {[%emt 0:02:30]} Rae8 {[%emt 0:02:30]} 28. Bxh4 {[%emt 0:04:49]} Nxf3+ {[%emt 0:03:18]} 29. Rxf3 {[%emt 0:00:11]} Rxh4 {[%emt 0:00:00]} 30. Rfe3 {[%emt 0:00:22]} Kf7 {[%emt 0:01:17]} 31. h3 {[%emt 0:07:50]} Rf4 {[%emt 0:02:34]} 32. g3 {[%emt 0:02:41]} Rf6 {[%emt 0:00:15]} 33. Rc3 {[%emt 0:02:53]} Bxh3 {[%emt 0:01:06]} 34. Rc7+ {[%emt 0:00:12]} Kf8 {[%emt 0:00:35]} 0-1